[Event "*** Titled Tuesday Blitz"]
[Site "Chess.com"]
[Date "2020.11.24"]
[Round "9"]
[White "Anna_ChessMate"]
[Black "Oglob71"]
[Result "0-1"]
[WhiteElo "2562"]
[BlackElo "2417"]
[TimeControl "180+1"]
[EndTime "12:04:49 PST"]
[Termination "Oglob71 won on time"]

1. d4 {[%clk 0:03:00.9]} 1... Nf6 {[%clk 0:02:56.3]} 2. c4 {[%clk 0:02:57.7]}
2... e6 {[%clk 0:02:55]} 3. Nf3 {[%clk 0:02:58.2]} 3... b6 {[%clk 0:02:53.6]} 4.
g3 {[%clk 0:02:57.2]} 4... Bb4+ {[%clk 0:02:52.2]} 5. Bd2 {[%clk 0:02:57]} 5...
a5 {[%clk 0:02:50.9]} 6. Bg2 {[%clk 0:02:56.7]} 6... Bb7 {[%clk 0:02:50.4]} 7.
O-O {[%clk 0:02:56.2]} 7... O-O {[%clk 0:02:50.2]} 8. Bf4 {[%clk 0:02:51.9]}
8... Be7 {[%clk 0:02:47.2]} 9. Nc3 {[%clk 0:02:50.8]} 9... Ne4 {[%clk
0:02:45.6]} 10. Rc1 {[%clk 0:02:50.9]} 10... Nxc3 {[%clk 0:02:44.3]} 11. Rxc3
{[%clk 0:02:51.8]} 11... d6 {[%clk 0:02:42.8]} 12. Qd3 {[%clk 0:02:51.6]} 12...
g6 {[%clk 0:02:36.9]} 13. e4 {[%clk 0:02:51.2]} 13... Nd7 {[%clk 0:02:36.4]} 14.
Re1 {[%clk 0:02:50.3]} 14... Re8 {[%clk 0:02:32.4]} 15. a3 {[%clk 0:02:49.9]}
15... a4 {[%clk 0:02:31.4]} 16. h4 {[%clk 0:02:45.8]} 16... Ra5 {[%clk
0:02:30.6]} 17. Rc2 {[%clk 0:02:42.9]} 17... Qa8 {[%clk 0:02:25.7]} 18. Bd2
{[%clk 0:02:42.3]} 18... Ra7 {[%clk 0:02:24.5]} 19. Bc3 {[%clk 0:02:41]} 19...
Bf8 {[%clk 0:02:18.9]} 20. h5 {[%clk 0:02:41]} 20... Bg7 {[%clk 0:02:17.8]} 21.
Rce2 {[%clk 0:02:41.4]} 21... e5 {[%clk 0:02:16.4]} 22. hxg6 {[%clk 0:02:39.8]}
22... hxg6 {[%clk 0:02:15.6]} 23. Bh3 {[%clk 0:02:37.5]} 23... Bc8 {[%clk
0:02:00.9]} 24. Bxd7 {[%clk 0:02:35.5]} 24... Bxd7 {[%clk 0:02:00.7]} 25. dxe5
{[%clk 0:02:36.4]} 25... Bg4 {[%clk 0:01:51.2]} 26. exd6 {[%clk 0:02:30.6]}
26... Bxc3 {[%clk 0:01:51.1]} 27. Qxc3 {[%clk 0:02:30.2]} 27... cxd6 {[%clk
0:01:51.7]} 28. Qf6 {[%clk 0:02:26]} 28... Rae7 {[%clk 0:01:44.2]} 29. Qf4
{[%clk 0:02:06.5]} 29... Bxf3 {[%clk 0:01:41.9]} 30. Qxf3 {[%clk 0:02:07.4]}
30... Qc6 {[%clk 0:01:41.9]} 31. Qd3 {[%clk 0:02:06]} 31... Re6 {[%clk 0:01:37]}
32. f3 {[%clk 0:02:02.4]} 32... Qc5+ {[%clk 0:01:36.5]} 33. Kg2 {[%clk
0:02:02.3]} 33... Kg7 {[%clk 0:01:34]} 34. Rh1 {[%clk 0:02:02.2]} 34... f6
{[%clk 0:01:29.9]} 35. Qd2 {[%clk 0:01:57.7]} 35... g5 {[%clk 0:01:26.6]} 36.
Qd3 {[%clk 0:01:55.8]} 36... Rh8 {[%clk 0:01:21.6]} 37. Ree1 {[%clk 0:01:49.2]}
37... Ree8 {[%clk 0:01:19.9]} 38. e5 {[%clk 0:01:34.1]} 38... dxe5 {[%clk
0:01:08.6]} 39. Rxh8 {[%clk 0:01:25.6]} 39... Rxh8 {[%clk 0:01:08.2]} 40. Qd7+
{[%clk 0:01:22.6]} 40... Kg6 {[%clk 0:01:08.2]} 41. Qd3+ {[%clk 0:01:10.3]}
41... Kg7 {[%clk 0:01:05.9]} 42. Re2 {[%clk 0:00:57.6]} 42... Rc8 {[%clk
0:01:03.6]} 43. Qd7+ {[%clk 0:00:56.8]} 43... Kg6 {[%clk 0:01:03.1]} 44. Rd2
{[%clk 0:00:44.8]} 44... Qxc4 {[%clk 0:01:02.3]} 45. g4 {[%clk 0:00:44.3]} 45...
Rh8 {[%clk 0:00:57.7]} 46. Qf5+ {[%clk 0:00:44]} 46... Kf7 {[%clk 0:00:53.5]}
47. Qd7+ {[%clk 0:00:23.5]} 47... Kg6 {[%clk 0:00:53.4]} 48. Qf5+ {[%clk
0:00:21.1]} 48... Kf7 {[%clk 0:00:53.4]} 49. Rd7+ {[%clk 0:00:05.9]} 49... Ke8
{[%clk 0:00:52.5]} 50. Rd8+ {[%clk 0:00:04.6]} 50... Kxd8 {[%clk 0:00:51.7]} 51.
Qxf6+ {[%clk 0:00:04.9]} 51... Kc7 {[%clk 0:00:52.1]} 52. Qxh8 {[%clk
0:00:05.1]} 52... Qe2+ {[%clk 0:00:51.8]} 53. Kg3 {[%clk 0:00:04.7]} 53... Qe1+
{[%clk 0:00:51.9]} 54. Kg2 {[%clk 0:00:04.5]} 54... Qe2+ {[%clk 0:00:52.4]} 55.
Kg3 {[%clk 0:00:04.9]} 55... Qe1+ {[%clk 0:00:49.4]} 56. Kg2 {[%clk 0:00:05.3]}
56... Qd2+ {[%clk 0:00:49.8]} 57. Kh3 {[%clk 0:00:05]} 57... Qf4 {[%clk
0:00:48.2]} 58. Qg7+ {[%clk 0:00:04.7]} 58... Kc6 {[%clk 0:00:47.8]} 59. Qg6+
{[%clk 0:00:04.5]} 59... Kc5 {[%clk 0:00:47.9]} 60. Qd3 {[%clk 0:00:04.8]} 60...
b5 {[%clk 0:00:46.6]} 61. Qc3+ {[%clk 0:00:05]} 61... Kb6 {[%clk 0:00:45.7]} 62.
Kg2 {[%clk 0:00:05.6]} 62... Kb7 {[%clk 0:00:38.8]} 63. Kf2 {[%clk 0:00:05.9]}
63... e4 {[%clk 0:00:38.9]} 64. Ke2 {[%clk 0:00:05.3]} 64... Qh2+ {[%clk
0:00:34.3]} 65. Ke3 {[%clk 0:00:05.3]} 65... exf3 {[%clk 0:00:34.4]} 66. Qg7+
{[%clk 0:00:05.9]} 66... Ka6 {[%clk 0:00:33.3]} 67. Qf6+ {[%clk 0:00:06]} 67...
Kb7 {[%clk 0:00:29.8]} 68. Qxf3+ {[%clk 0:00:02.6]} 68... Ka7 {[%clk 0:00:24.1]}
69. Qf7+ {[%clk 0:00:02.3]} 69... Ka8 {[%clk 0:00:22.5]} 70. Qf6 {[%clk
0:00:02.8]} 70... Qg3+ {[%clk 0:00:21.2]} 71. Kd2 {[%clk 0:00:03.4]} 71... Qxg4
{[%clk 0:00:20.4]} 72. Kc3 {[%clk 0:00:04]} 72... Qf4 {[%clk 0:00:18.9]} 73. Qg7
{[%clk 0:00:03.4]} 73... Qc4+ {[%clk 0:00:17.2]} 74. Kd2 {[%clk 0:00:03.3]}
74... g4 {[%clk 0:00:18]} 0-1

[Event "*** Titled Tuesday Blitz"]
[Site "Chess.com"]
[Date "2020.11.24"]
[Round "9"]
[White "ShahMatKanal"]
[Black "HrvojeZagreb"]
[Result "0-1"]
[WhiteElo "2505"]
[BlackElo "2300"]
[TimeControl "180+1"]
[EndTime "12:04:59 PST"]
[Termination "HrvojeZagreb won by checkmate"]

1. e4 {[%clk 0:03:00.9]} 1... e6 {[%clk 0:02:59.6]} 2. c4 {[%clk 0:02:51.2]}
2... d5 {[%clk 0:02:56.7]} 3. exd5 {[%clk 0:02:51.4]} 3... exd5 {[%clk
0:02:57.4]} 4. d4 {[%clk 0:02:51.2]} 4... Bb4+ {[%clk 0:02:55.2]} 5. Nc3 {[%clk
0:02:47.5]} 5... Nf6 {[%clk 0:02:50.2]} 6. Be2 {[%clk 0:02:34.3]} 6... dxc4
{[%clk 0:02:45.2]} 7. Bxc4 {[%clk 0:02:30.2]} 7... O-O {[%clk 0:02:44.3]} 8. Ne2
{[%clk 0:02:30]} 8... Nbd7 {[%clk 0:02:36.6]} 9. O-O {[%clk 0:02:29.4]} 9... Nb6
{[%clk 0:02:36.5]} 10. Bb3 {[%clk 0:02:15.5]} 10... c6 {[%clk 0:02:36.2]} 11. a3
{[%clk 0:02:14.6]} 11... Be7 {[%clk 0:02:28.7]} 12. Nf4 {[%clk 0:02:01.7]} 12...
Qc7 {[%clk 0:02:21.2]} 13. Qf3 {[%clk 0:01:45.5]} 13... Rd8 {[%clk 0:02:13.6]}
14. Be3 {[%clk 0:01:41.6]} 14... Bg4 {[%clk 0:01:41.3]} 15. Qg3 {[%clk
0:01:40.4]} 15... Bf5 {[%clk 0:01:39.2]} 16. Ng6 {[%clk 0:01:10.4]} 16... Bd6
{[%clk 0:01:35.1]} 17. Ne5 {[%clk 0:01:08.6]} 17... Nfd5 {[%clk 0:01:14.6]} 18.
Rac1 {[%clk 0:00:53.7]} 18... Bxe5 {[%clk 0:00:55.4]} 19. dxe5 {[%clk
0:00:51.5]} 19... Be6 {[%clk 0:00:51]} 20. Bc2 {[%clk 0:00:44.5]} 20... Nxe3
{[%clk 0:00:45.8]} 21. Qxe3 {[%clk 0:00:44]} 21... Nc4 {[%clk 0:00:36.8]} 22.
Qe4 {[%clk 0:00:44.2]} 22... g6 {[%clk 0:00:35.5]} 23. Rfe1 {[%clk 0:00:35]}
23... Nxb2 {[%clk 0:00:31.7]} 24. Qf4 {[%clk 0:00:24.4]} 24... Nd3 {[%clk
0:00:29]} 25. Bxd3 {[%clk 0:00:24.1]} 25... Rxd3 {[%clk 0:00:29.6]} 26. Ne4
{[%clk 0:00:25]} 26... Rad8 {[%clk 0:00:24]} 27. Qh6 {[%clk 0:00:18.8]} 27...
Qxe5 {[%clk 0:00:19.5]} 28. Nc5 {[%clk 0:00:09.3]} 28... Qg7 {[%clk 0:00:12.1]}
29. Qxg7+ {[%clk 0:00:09.1]} 29... Kxg7 {[%clk 0:00:12.6]} 30. Nxd3 {[%clk
0:00:10]} 30... Rxd3 {[%clk 0:00:13]} 31. Rb1 {[%clk 0:00:10.4]} 31... b5 {[%clk
0:00:12.3]} 32. Re3 {[%clk 0:00:10.5]} 32... Rxe3 {[%clk 0:00:10.3]} 33. fxe3
{[%clk 0:00:11.4]} 33... Bd5 {[%clk 0:00:10.5]} 34. Kf2 {[%clk 0:00:11.7]} 34...
f5 {[%clk 0:00:10.7]} 35. g3 {[%clk 0:00:11.6]} 35... Kf6 {[%clk 0:00:11]} 36.
Ke2 {[%clk 0:00:11.9]} 36... Ke5 {[%clk 0:00:11.3]} 37. Ra1 {[%clk 0:00:10.3]}
37... a5 {[%clk 0:00:11.4]} 38. Rc1 {[%clk 0:00:07.4]} 38... b4 {[%clk
0:00:11.3]} 39. axb4 {[%clk 0:00:08]} 39... axb4 {[%clk 0:00:12]} 40. Kd3 {[%clk
0:00:07.3]} 40... g5 {[%clk 0:00:08.2]} 41. h4 {[%clk 0:00:06.5]} 41... h6
{[%clk 0:00:07.7]} 42. hxg5 {[%clk 0:00:06.9]} 42... hxg5 {[%clk 0:00:08.6]} 43.
Rf1 {[%clk 0:00:06.9]} 43... b3 {[%clk 0:00:07.7]} 44. Kc3 {[%clk 0:00:05.4]}
44... Ke4 {[%clk 0:00:06.7]} 45. Rf2 {[%clk 0:00:04.4]} 45... Kxe3 {[%clk
0:00:06.5]} 46. Rxf5 {[%clk 0:00:04.6]} 46... g4 {[%clk 0:00:06.3]} 47. Rf8
{[%clk 0:00:02.9]} 47... Bf3 {[%clk 0:00:05.7]} 48. Kxb3 {[%clk 0:00:02.4]}
48... Kf2 {[%clk 0:00:06.1]} 49. Kc3 {[%clk 0:00:03.3]} 49... Kxg3 {[%clk
0:00:06.1]} 50. Kd2 {[%clk 0:00:03.3]} 50... Kf2 {[%clk 0:00:06.5]} 51. Rh8
{[%clk 0:00:01.6]} 51... g3 {[%clk 0:00:06.6]} 52. Rg8 {[%clk 0:00:01.6]} 52...
g2 {[%clk 0:00:06.3]} 53. Kc3 {[%clk 0:00:01.6]} 53... g1=Q {[%clk 0:00:06.6]}
54. Rxg1 {[%clk 0:00:02.4]} 54... Kxg1 {[%clk 0:00:07.2]} 55. Kc4 {[%clk
0:00:03.3]} 55... Kf2 {[%clk 0:00:07.7]} 56. Kc5 {[%clk 0:00:03.8]} 56... Ke3
{[%clk 0:00:08.1]} 57. Kc4 {[%clk 0:00:04.2]} 57... Kf4 {[%clk 0:00:07.8]} 58.
Kc3 {[%clk 0:00:04.6]} 58... Kf5 {[%clk 0:00:08.1]} 59. Kd4 {[%clk 0:00:04.8]}
59... Ke6 {[%clk 0:00:08.4]} 60. Kc5 {[%clk 0:00:05.3]} 60... Kd7 {[%clk
0:00:08.4]} 61. Kc4 {[%clk 0:00:06.2]} 61... Kd6 {[%clk 0:00:08.6]} 62. Kd4
{[%clk 0:00:07.1]} 62... c5+ {[%clk 0:00:08.9]} 63. Kc4 {[%clk 0:00:08]} 63...
Bd5+ {[%clk 0:00:09.1]} 64. Kc3 {[%clk 0:00:08.9]} 64... Bg8 {[%clk 0:00:09.5]}
65. Kd3 {[%clk 0:00:09.8]} 65... Kd5 {[%clk 0:00:10]} 66. Kc3 {[%clk 0:00:10.7]}
66... c4 {[%clk 0:00:10.4]} 67. Kc2 {[%clk 0:00:11]} 67... Kd4 {[%clk 0:00:11]}
68. Kd2 {[%clk 0:00:11.9]} 68... Bh7 {[%clk 0:00:11.5]} 69. Kc1 {[%clk
0:00:11.8]} 69... Kc3 {[%clk 0:00:11.7]} 70. Kd1 {[%clk 0:00:11.9]} 70... Kb2
{[%clk 0:00:11.9]} 71. Kd2 {[%clk 0:00:12.4]} 71... c3+ {[%clk 0:00:12.3]} 72.
Ke3 {[%clk 0:00:12.9]} 72... c2 {[%clk 0:00:13.1]} 73. Kf4 {[%clk 0:00:12.1]}
73... c1=Q+ {[%clk 0:00:14]} 74. Ke5 {[%clk 0:00:12.1]} 74... Qc6 {[%clk
0:00:14.4]} 75. Kd4 {[%clk 0:00:12]} 75... Kb3 {[%clk 0:00:13.8]} 76. Ke5 {[%clk
0:00:12.1]} 76... Qe4+ {[%clk 0:00:13.3]} 77. Kf6 {[%clk 0:00:12.1]} 77... Qf5+
{[%clk 0:00:13.5]} 78. Kg7 {[%clk 0:00:12.1]} 78... Qg6+ {[%clk 0:00:13.3]} 79.
Kf8 {[%clk 0:00:12.6]} 79... Qf6+ {[%clk 0:00:12.6]} 80. Ke8 {[%clk 0:00:12.8]}
80... Qg7 {[%clk 0:00:12.4]} 81. Kd8 {[%clk 0:00:13]} 81... Kc4 {[%clk
0:00:12.7]} 82. Kc8 {[%clk 0:00:12.7]} 82... Kd5 {[%clk 0:00:13.1]} 83. Kd8
{[%clk 0:00:12.9]} 83... Kd6 {[%clk 0:00:12.6]} 84. Kc8 {[%clk 0:00:12.9]} 84...
Qc7# {[%clk 0:00:12.3]} 0-1

[Event "*** Titled Tuesday Blitz"]
[Site "Chess.com"]
[Date "2020.11.24"]
[Round "9"]
[White "Xeniya2005"]
[Black "Cambek64"]
[Result "1-0"]
[WhiteElo "2437"]
[BlackElo "2298"]
[TimeControl "180+1"]
[EndTime "12:05:05 PST"]
[Termination "Xeniya2005 won on time"]

1. e4 {[%clk 0:03:00.9]} 1... c6 {[%clk 0:02:50.4]} 2. d4 {[%clk 0:03:00.2]}
2... d5 {[%clk 0:02:34.5]} 3. Nd2 {[%clk 0:02:59.4]} 3... dxe4 {[%clk
0:02:22.8]} 4. Nxe4 {[%clk 0:03:00.3]} 4... Bf5 {[%clk 0:02:06.9]} 5. Ng3 {[%clk
0:02:58.5]} 5... Bg6 {[%clk 0:01:52.4]} 6. h4 {[%clk 0:02:58.3]} 6... h6 {[%clk
0:01:46.1]} 7. Nf3 {[%clk 0:02:57.9]} 7... Nd7 {[%clk 0:01:40.2]} 8. h5 {[%clk
0:02:56.9]} 8... Bh7 {[%clk 0:01:39.9]} 9. Bd3 {[%clk 0:02:57.4]} 9... Bxd3
{[%clk 0:01:39.5]} 10. Qxd3 {[%clk 0:02:58.3]} 10... Ngf6 {[%clk 0:01:36.7]} 11.
Bd2 {[%clk 0:02:57.8]} 11... e6 {[%clk 0:01:37.1]} 12. O-O-O {[%clk 0:02:57.7]}
12... Qc7 {[%clk 0:01:37.6]} 13. Ne4 {[%clk 0:02:55.3]} 13... O-O-O {[%clk
0:01:37.5]} 14. Kb1 {[%clk 0:02:51.9]} 14... Nxe4 {[%clk 0:01:37]} 15. Qxe4
{[%clk 0:02:49.7]} 15... Nf6 {[%clk 0:01:37.5]} 16. Qe2 {[%clk 0:02:49.2]} 16...
c5 {[%clk 0:01:37.1]} 17. Rh4 {[%clk 0:02:23.4]} 17... Kb8 {[%clk 0:01:35.8]}
18. dxc5 {[%clk 0:02:19.2]} 18... Bxc5 {[%clk 0:01:24.6]} 19. Rc4 {[%clk
0:02:12.5]} 19... Qb6 {[%clk 0:01:21.6]} 20. Ne5 {[%clk 0:02:09]} 20... Rhf8
{[%clk 0:01:18.2]} 21. Nd3 {[%clk 0:01:51.1]} 21... Bd6 {[%clk 0:01:10.5]} 22.
Be3 {[%clk 0:01:49.2]} 22... Qa6 {[%clk 0:01:05.4]} 23. b3 {[%clk 0:01:36.6]}
23... Nd5 {[%clk 0:01:05.7]} 24. Bd4 {[%clk 0:01:12.1]} 24... b5 {[%clk
0:00:54.6]} 25. Rc5 {[%clk 0:01:00.3]} 25... Bxc5 {[%clk 0:00:53.5]} 26. Nxc5
{[%clk 0:01:00]} 26... Qc6 {[%clk 0:00:53.5]} 27. c4 {[%clk 0:00:52.5]} 27...
Nc3+ {[%clk 0:00:39.6]} 28. Bxc3 {[%clk 0:00:48.1]} 28... Rxd1+ {[%clk
0:00:37.6]} 29. Qxd1 {[%clk 0:00:47.6]} 29... Qxc5 {[%clk 0:00:36.2]} 30. Qd7
{[%clk 0:00:35.6]} 30... bxc4 {[%clk 0:00:30.4]} 31. Bd4 {[%clk 0:00:29.5]}
31... Qc7 {[%clk 0:00:28]} 32. Qb5+ {[%clk 0:00:23.4]} 32... Ka8 {[%clk
0:00:26.6]} 33. Be5 {[%clk 0:00:19.7]} 33... Rb8 {[%clk 0:00:22.8]} 34. Qa6
{[%clk 0:00:16.4]} 34... Qb6 {[%clk 0:00:21.4]} 35. Qxc4 {[%clk 0:00:15.8]}
35... Rg8 {[%clk 0:00:11.3]} 36. Bd4 {[%clk 0:00:11.8]} 36... Qb7 {[%clk
0:00:11.5]} 37. g3 {[%clk 0:00:10.6]} 37... Rc8 {[%clk 0:00:11.7]} 38. Qe2
{[%clk 0:00:08.8]} 38... f6 {[%clk 0:00:12.1]} 39. Be3 {[%clk 0:00:08.1]} 39...
Qe4+ {[%clk 0:00:09.8]} 40. Kb2 {[%clk 0:00:08.1]} 40... e5 {[%clk 0:00:10.1]}
41. Qd2 {[%clk 0:00:07.8]} 41... Qc6 {[%clk 0:00:09.4]} 42. Qd3 {[%clk 0:00:07]}
42... Kb7 {[%clk 0:00:06.2]} 43. a4 {[%clk 0:00:06.2]} 43... Rc7 {[%clk
0:00:06.5]} 44. Qd2 {[%clk 0:00:05.1]} 44... Rd7 {[%clk 0:00:06.4]} 45. Qb4+
{[%clk 0:00:05]} 45... Ka6 {[%clk 0:00:06.7]} 46. Qe1 {[%clk 0:00:03.3]} 46...
Rb7 {[%clk 0:00:07]} 47. Qe2+ {[%clk 0:00:03.4]} 47... Ka5 {[%clk 0:00:07.1]}
48. Bd2+ {[%clk 0:00:03.2]} 48... Kb6 {[%clk 0:00:07.1]} 49. Be3+ {[%clk
0:00:02.6]} 49... Kc7 {[%clk 0:00:07.3]} 50. Ka2 {[%clk 0:00:01.8]} 50... Kd8
{[%clk 0:00:03.8]} 51. Qd3+ {[%clk 0:00:01.6]} 51... Rd7 {[%clk 0:00:02.9]} 52.
Qe2 {[%clk 0:00:02.1]} 52... Ke8 {[%clk 0:00:02.1]} 53. Ka3 {[%clk 0:00:02.3]}
53... Kf8 {[%clk 0:00:02.4]} 54. Ka2 {[%clk 0:00:02.4]} 54... Kg8 {[%clk
0:00:02.7]} 55. Qb2 {[%clk 0:00:02.6]} 55... Qd5 {[%clk 0:00:02.8]} 56. Ka3
{[%clk 0:00:02.8]} 56... Rb7 {[%clk 0:00:02.9]} 57. b4 {[%clk 0:00:02.9]} 57...
a5 {[%clk 0:00:02.9]} 58. Bc5 {[%clk 0:00:03]} 58... axb4+ {[%clk 0:00:02.1]}
59. Bxb4 {[%clk 0:00:03.9]} 59... Qc4 {[%clk 0:00:02]} 60. a5 {[%clk 0:00:04.1]}
60... Rb5 {[%clk 0:00:01.9]} 61. Qb3 {[%clk 0:00:04.1]} 61... Qxb3+ {[%clk
0:00:01.4]} 62. Kxb3 {[%clk 0:00:05]} 62... Rb8 {[%clk 0:00:01.3]} 63. Kc4
{[%clk 0:00:05.1]} 63... Kf7 {[%clk 0:00:01.7]} 64. a6 {[%clk 0:00:05.2]} 64...
Ke6 {[%clk 0:00:02.2]} 65. a7 {[%clk 0:00:05]} 65... Ra8 {[%clk 0:00:02.8]} 66.
Bc5 {[%clk 0:00:04.9]} 66... f5 {[%clk 0:00:03.4]} 67. Kb5 {[%clk 0:00:04.8]}
67... Kd5 {[%clk 0:00:03.8]} 68. Kb6 {[%clk 0:00:04.7]} 68... e4 {[%clk
0:00:03.5]} 69. Kb7 {[%clk 0:00:04.5]} 69... Rxa7+ {[%clk 0:00:03.5]} 70. Bxa7
{[%clk 0:00:05.4]} 70... Ke5 {[%clk 0:00:02.4]} 71. Be3 {[%clk 0:00:05.7]} 71...
Kf6 {[%clk 0:00:01.4]} 72. Kc6 {[%clk 0:00:05.3]} 72... g5 {[%clk 0:00:01.3]}
73. hxg6 {[%clk 0:00:05.2]} 1-0

[Event "*** Titled Tuesday Blitz"]
[Site "Chess.com"]
[Date "2020.11.24"]
[Round "9"]
[White "Chessbard1972"]
[Black "WiktoriaPOL"]
[Result "0-1"]
[WhiteElo "2312"]
[BlackElo "2106"]
[TimeControl "180+1"]
[EndTime "12:05:54 PST"]
[Termination "WiktoriaPOL won by checkmate"]

1. e4 {[%clk 0:03:00.9]} 1... c5 {[%clk 0:02:59.3]} 2. d4 {[%clk 0:03:00.1]}
2... cxd4 {[%clk 0:02:58.7]} 3. c3 {[%clk 0:03:00.1]} 3... Nf6 {[%clk
0:02:58.6]} 4. e5 {[%clk 0:02:59.8]} 4... Nd5 {[%clk 0:02:58.8]} 5. Bc4 {[%clk
0:03:00.2]} 5... Nb6 {[%clk 0:02:58.3]} 6. Bb3 {[%clk 0:03:00.4]} 6... e6 {[%clk
0:02:57.8]} 7. Nf3 {[%clk 0:02:58.6]} 7... d5 {[%clk 0:02:57.5]} 8. exd6 {[%clk
0:02:58.1]} 8... Bxd6 {[%clk 0:02:56.7]} 9. Nxd4 {[%clk 0:02:57.2]} 9... O-O
{[%clk 0:02:55.9]} 10. O-O {[%clk 0:02:54.4]} 10... Nc6 {[%clk 0:02:55.6]} 11.
Nb5 {[%clk 0:02:49.2]} 11... Be5 {[%clk 0:02:51.8]} 12. Qxd8 {[%clk 0:02:46]}
12... Rxd8 {[%clk 0:02:52.7]} 13. Nd2 {[%clk 0:02:39.1]} 13... a6 {[%clk
0:02:51.5]} 14. Na3 {[%clk 0:02:38.1]} 14... Nd5 {[%clk 0:02:47.7]} 15. Nf3
{[%clk 0:02:35.4]} 15... Bc7 {[%clk 0:02:46]} 16. Nc2 {[%clk 0:02:30.2]} 16...
b5 {[%clk 0:02:45]} 17. Ne3 {[%clk 0:02:25.6]} 17... Bb7 {[%clk 0:02:37.9]} 18.
Nxd5 {[%clk 0:02:24.8]} 18... exd5 {[%clk 0:02:37.6]} 19. Be3 {[%clk 0:02:24.5]}
19... Ne5 {[%clk 0:02:32.8]} 20. Nxe5 {[%clk 0:02:19]} 20... Bxe5 {[%clk
0:02:33.7]} 21. Rad1 {[%clk 0:02:16.8]} 21... Rd7 {[%clk 0:02:32.4]} 22. Bd4
{[%clk 0:02:16.2]} 22... Bf4 {[%clk 0:02:29]} 23. g3 {[%clk 0:02:14.8]} 23...
Bc7 {[%clk 0:02:27.5]} 24. Rd2 {[%clk 0:02:13]} 24... Rad8 {[%clk 0:02:26.3]}
25. Rfd1 {[%clk 0:02:12.6]} 25... a5 {[%clk 0:02:20]} 26. a4 {[%clk 0:02:11.5]}
26... Bc6 {[%clk 0:02:16]} 27. axb5 {[%clk 0:02:06.2]} 27... Bxb5 {[%clk
0:02:16.9]} 28. Bc5 {[%clk 0:02:03.3]} 28... Bc6 {[%clk 0:02:02.8]} 29. Bd4
{[%clk 0:01:55]} 29... a4 {[%clk 0:01:59.7]} 30. Ba2 {[%clk 0:01:36.6]} 30... f6
{[%clk 0:01:57.1]} 31. f4 {[%clk 0:01:34.7]} 31... Kf7 {[%clk 0:01:40.3]} 32.
Kf2 {[%clk 0:01:34.3]} 32... g5 {[%clk 0:01:39.9]} 33. fxg5 {[%clk 0:01:32.8]}
33... fxg5 {[%clk 0:01:39.5]} 34. Kg2 {[%clk 0:01:32.9]} 34... h6 {[%clk
0:01:37.7]} 35. Rf1+ {[%clk 0:01:32.1]} 35... Kg8 {[%clk 0:01:36.8]} 36. Rdf2
{[%clk 0:01:31.9]} 36... Rd6 {[%clk 0:01:33.2]} 37. Bc5 {[%clk 0:01:25.2]} 37...
Re6 {[%clk 0:01:23]} 38. Bd4 {[%clk 0:01:20.5]} 38... Rd7 {[%clk 0:01:21.7]} 39.
c4 {[%clk 0:01:19]} 39... dxc4+ {[%clk 0:01:20.2]} 40. Kg1 {[%clk 0:01:10.6]}
40... Rxd4 {[%clk 0:01:08.4]} 41. Rf8+ {[%clk 0:01:09.6]} 41... Kg7 {[%clk
0:01:08.5]} 42. R8f7+ {[%clk 0:01:09.1]} 42... Kg6 {[%clk 0:01:07]} 43. Bb1+
{[%clk 0:01:08]} 43... Be4 {[%clk 0:01:05.6]} 44. Bxe4+ {[%clk 0:01:05.2]} 44...
Rdxe4 {[%clk 0:01:05.7]} 45. Rxc7 {[%clk 0:01:04.8]} 45... Rd6 {[%clk
0:00:54.2]} 46. Rf2 {[%clk 0:01:03.3]} 46... Red4 {[%clk 0:00:50.1]} 47. h3
{[%clk 0:01:00.9]} 47... Rd1+ {[%clk 0:00:48.8]} 48. Kg2 {[%clk 0:01:00.6]}
48... R1d2 {[%clk 0:00:49.4]} 49. Rf7 {[%clk 0:00:57.6]} 49... Rxf2+ {[%clk
0:00:43]} 50. Rxf2 {[%clk 0:00:56.5]} 50... Rb6 {[%clk 0:00:40.2]} 51. g4 {[%clk
0:00:55.3]} 51... Rb3 {[%clk 0:00:37.5]} 52. Rc2 {[%clk 0:00:54.8]} 52... Rb4
{[%clk 0:00:33.9]} 53. Kf3 {[%clk 0:00:54.3]} 53... Kf6 {[%clk 0:00:33.8]} 54.
Ke3 {[%clk 0:00:48.5]} 54... Ke5 {[%clk 0:00:29.5]} 55. Kd2 {[%clk 0:00:47.7]}
55... Kd4 {[%clk 0:00:28.9]} 56. Kc1 {[%clk 0:00:45.5]} 56... Rb3 {[%clk
0:00:19.9]} 57. Rh2 {[%clk 0:00:44]} 57... a3 {[%clk 0:00:18.8]} 58. bxa3 {[%clk
0:00:43.4]} 58... Rxa3 {[%clk 0:00:19.7]} 59. h4 {[%clk 0:00:41.5]} 59... c3
{[%clk 0:00:12.8]} 60. Kb1 {[%clk 0:00:35.7]} 60... Rb3+ {[%clk 0:00:07.4]} 61.
Kc1 {[%clk 0:00:34.9]} 61... Rb5 {[%clk 0:00:04.2]} 62. hxg5 {[%clk 0:00:31.7]}
62... hxg5 {[%clk 0:00:05.1]} 63. Rh8 {[%clk 0:00:31]} 63... Ke4 {[%clk
0:00:04.7]} 64. Rf8 {[%clk 0:00:29.6]} 64... Rc5 {[%clk 0:00:03.1]} 65. Kc2
{[%clk 0:00:28.6]} 65... Ke3 {[%clk 0:00:01.9]} 66. Rf7 {[%clk 0:00:25.9]} 66...
Rc4 {[%clk 0:00:02.2]} 67. Rf5 {[%clk 0:00:21.2]} 67... Rxg4 {[%clk 0:00:02.2]}
68. Kxc3 {[%clk 0:00:21.5]} 68... Rg3 {[%clk 0:00:02.5]} 69. Kc2 {[%clk
0:00:20.8]} 69... Ke4 {[%clk 0:00:02.8]} 70. Rf8 {[%clk 0:00:20.1]} 70... g4
{[%clk 0:00:03]} 71. Kd2 {[%clk 0:00:19.8]} 71... Rf3 {[%clk 0:00:03.2]} 72. Rg8
{[%clk 0:00:18.6]} 72... g3 {[%clk 0:00:02.7]} 73. Ke2 {[%clk 0:00:18.6]} 73...
Rf2+ {[%clk 0:00:02.7]} 74. Ke1 {[%clk 0:00:18.5]} 74... Kf3 {[%clk 0:00:02.8]}
75. Rf8+ {[%clk 0:00:16.9]} 75... Kg2 {[%clk 0:00:03]} 76. Rg8 {[%clk
0:00:16.9]} 76... Rf3 {[%clk 0:00:03]} 77. Rh8 {[%clk 0:00:15.5]} 77... Re3+
{[%clk 0:00:03.2]} 78. Kd2 {[%clk 0:00:15.5]} 78... Re4 {[%clk 0:00:03]} 79. Kd3
{[%clk 0:00:12.6]} 79... Re6 {[%clk 0:00:02.8]} 80. Rf8 {[%clk 0:00:09.1]} 80...
Kg1 {[%clk 0:00:02.8]} 81. Kd2 {[%clk 0:00:07.9]} 81... g2 {[%clk 0:00:03.2]}
82. Rf4 {[%clk 0:00:06]} 82... Re5 {[%clk 0:00:03.5]} 83. Kd1 {[%clk 0:00:05]}
83... Kh2 {[%clk 0:00:03.8]} 84. Rh4+ {[%clk 0:00:03.3]} 84... Kg3 {[%clk
0:00:04]} 85. Rh8 {[%clk 0:00:02.5]} 85... Kg4 {[%clk 0:00:04.2]} 86. Rg8+
{[%clk 0:00:01.9]} 86... Rg5 {[%clk 0:00:04.4]} 87. Rxg5+ {[%clk 0:00:01.7]}
87... Kxg5 {[%clk 0:00:05.3]} 88. Ke2 {[%clk 0:00:02.1]} 88... g1=Q {[%clk
0:00:05.7]} 89. Kd3 {[%clk 0:00:03]} 89... Qg3+ {[%clk 0:00:05.7]} 90. Kc4
{[%clk 0:00:03.9]} 90... Qf4+ {[%clk 0:00:05.8]} 91. Kd5 {[%clk 0:00:04.8]}
91... Kf5 {[%clk 0:00:05.2]} 92. Kc6 {[%clk 0:00:05.7]} 92... Qe5 {[%clk
0:00:05.1]} 93. Kd7 {[%clk 0:00:06.6]} 93... Qf6 {[%clk 0:00:04.9]} 94. Kc7
{[%clk 0:00:04.9]} 94... Ke5 {[%clk 0:00:05]} 95. Kd7 {[%clk 0:00:05.1]} 95...
Qf7+ {[%clk 0:00:04.6]} 96. Kc8 {[%clk 0:00:05]} 96... Kd6 {[%clk 0:00:03.6]}
97. Kb8 {[%clk 0:00:05.9]} 97... Kc6 {[%clk 0:00:03.5]} 98. Ka8 {[%clk
0:00:06.8]} 98... Qe8+ {[%clk 0:00:03.6]} 99. Ka7 {[%clk 0:00:04.3]} 99... Qe4
{[%clk 0:00:03.5]} 100. Kb8 {[%clk 0:00:03.2]} 100... Kb6 {[%clk 0:00:03.7]}
101. Kc8 {[%clk 0:00:02.9]} 101... Qe8# {[%clk 0:00:04.3]} 0-1